bitfinex/quotes_SOLUSD_20240918
["timestamp","ask_amount","ask_price","bid_price","bid_amount"]
[1726687803355,7.6401,130.89,130.84,20.0]
[1726687803552,8.3037933,130.92,130.85,19.1051]
[1726687803758,0.6651933,130.92,130.88,7.6404]
[1726687803960,0.6651933,130.92,130.9,7.6391]
[1726687804153,0.6651933,130.92,130.89,7.6395]
[1726687804455,0.6651933,130.92,130.83,39.96448727]
[1726687804456,0.6651933,130.92,130.83,1.74708727]
[1726687804651,0.6651933,130.92,130.78,6.4264]
[1726687804869,6.3863,130.91,130.78,6.4264]
[1726687805042,6.3863,130.91,130.8,7.6451]
[1726687805043,7.6416,130.87,130.8,7.6451]
[1726687805246,7.6405,130.89,130.81,7.6445]
[1726687805459,7.6405,130.89,130.78,6.4264]
[1726687805460,20.0,130.89,130.78,45.81464199]
[1726687805659,7.6409,130.88,130.81,7.6441]
[1726687806143,20.0,130.9,130.82,0.4457198]
[1726687806346,20.0,130.9,130.8,19.1122]
[1726687806546,20.0,130.88,130.8,19.1122]
[1726687806779,8.3034933,130.92,130.85,7.6422]
[1726687807107,8.3034933,130.92,130.78,94.6565]
[1726687807108,0.6651933,130.92,130.88,7.6404]
[1726687807250,0.6651933,130.92,130.9,0.25098]
[1726687807451,0.6651933,130.92,130.9,7.89028]
[1726687807655,0.6651933,130.92,130.91,0.12549]
[1726687807875,0.6651933,130.92,130.91,0.81974233]
[1726687808042,0.6651933,130.92,130.86,6.3655]
[1726687808240,0.6651933,130.92,130.87,0.37647]
[1726687808673,0.6651933,130.92,130.88,7.6404]
[1726687808873,0.6651933,130.92,130.89,8.01637]
[1726687809167,0.6651933,130.92,130.85,22.7567]
[1726687809368,0.6651933,130.92,130.86,0.25098]
[1726687809551,0.6651933,130.92,130.87,0.12549]
[1726687809864,0.6651933,130.92,130.89,0.12549]
[1726687810262,0.6651933,130.92,130.88,0.12549]
[1726687810461,0.6651933,130.92,130.9,0.37647]
[1726687810888,0.6651933,130.92,130.9,0.25098]
[1726687811281,0.6651933,130.92,130.91,0.12549]
[1726687811487,0.6651933,130.92,130.91,8.01527]
[1726687811799,0.6651933,130.92,130.91,28.01527]
[1726687812004,0.3666981,130.98,130.97,8.01177]
[1726687812182,0.3666981,130.98,130.97,29.53811361]
[1726687812369,0.3666981,130.98,130.97,20.25098]
[1726687812668,0.3666981,130.98,130.97,0.37647]
[1726687812975,0.3666981,130.98,130.96,0.25098]
[1726687813178,0.3666981,130.98,130.96,0.12549]
[1726687813384,0.3666981,130.98,130.95,0.37647]
[1726687813582,8.0015981,130.98,130.92,7.6382]
[1726687813897,0.3666981,130.98,130.93,0.37647]
[1726687814086,0.3666981,130.98,130.96,7.76139]
[1726687814278,0.3666981,130.98,130.97,8.01177]
[1726687814481,0.3666981,130.98,130.97,0.25098]
[1726687814688,0.3666981,130.98,130.94,7.637]
[1726687814888,0.3666981,130.98,130.92,39.0941]
[1726687814889,0.3666981,130.98,130.97,0.37647]
[1726687815283,0.3666981,130.98,130.97,8.01177]
[1726687815881,0.3666981,130.98,130.97,0.25098]
[1726687816100,0.3666981,130.98,130.97,0.37647]
[1726687816401,0.3666981,130.98,130.97,8.01177]
[1726687816708,0.3666981,130.98,130.97,0.25098]
[1726687817001,7.6354,130.97,130.92,19.0953]
[1726687817201,0.3666981,130.98,130.92,26.7334]
[1726687817609,0.3666981,130.98,130.92,19.0953]
[1726687817897,0.3666981,130.98,130.89,38.1976]
[1726687817898,7.6365,130.95,130.89,19.0999]
[1726687818072,7.6371,130.94,130.89,26.7397]
[1726687818274,0.3666981,130.98,130.89,19.0999]
[1726687818506,20.3666981,130.98,130.89,26.7398]
[1726687818684,7.6371,130.94,130.89,26.7398]
[1726687819098,20.3666981,130.98,130.89,19.0999]
[1726687819311,7.6364,130.96,130.9,7.6393]
[1726687819618,7.6364,130.96,130.91,7.6386]
[1726687819785,20.3666981,130.98,130.92,0.25098]
[1726687819979,7.636,130.96,130.92,0.25098]
[1726687820202,7.6354,130.97,130.92,7.88898]
[1726687820495,8.0013981,130.98,130.94,0.25098]
[1726687820698,7.6353,130.97,130.94,0.25098]
[1726687820893,7.6369,130.95,130.89,7.76499]
[1726687821201,19.4542981,130.98,130.89,0.25098]
[1726687821397,0.3666981,130.98,130.89,0.25098]
[1726687821607,0.3666981,130.98,130.91,0.25098]
[1726687821806,0.3666981,130.98,130.93,0.25098]
[1726687822008,0.3666981,130.98,130.95,0.12549]
[1726687822181,0.3666981,130.98,130.93,0.25098]
[1726687822384,7.6359,130.96,130.95,0.12549]
[1726687823499,7.6375,130.94,130.9,0.12549]
[1726687823709,7.6363,130.96,130.91,7.6386]
[1726687823883,7.6365,130.95,130.92,0.12549]
[1726687824079,7.6372,130.94,130.89,20.84548641]
[1726687824306,7.6379,130.93,130.9,0.12549]
[1726687824494,7.6379,130.93,130.89,20.84548641]
[1726687824686,26.0682,130.94,130.83,6.0835]
[1726687824884,7.6412,130.87,130.83,32.8348]
[1726687825109,20.0,130.92,130.83,19.1079]
[1726687825292,20.0,130.9,130.8,72.5851]
[1726687825491,6.0682,130.94,130.81,51.74735439]
[1726687825705,6.0682,130.94,130.8,92.86124199]
[1726687825706,20.0,130.93,130.87,7.6406]
[1726687825916,7.6388,130.91,130.86,26.7455]
[1726687826300,26.15168463,130.97,130.82,1.74722082]
[1726687826301,25.9459981,130.98,130.88,19.1009]
[1726687826600,0.3666981,130.98,130.94,0.25098]
[1726687826803,0.3666981,130.98,130.92,19.0952]
[1726687826804,7.6363,130.96,130.92,0.37647]
[1726687826994,0.3666981,130.98,130.92,0.37647]
[1726687827186,0.3666981,130.98,130.96,0.12549]
[1726687827386,0.3666981,130.98,130.97,7.88628]
[1726687827611,0.3666981,130.98,130.95,19.0909]
[1726687827812,0.3666981,130.98,130.96,0.25098]
[1726687828015,0.3666981,130.98,130.97,0.12549]
[1726687828196,0.3666981,130.98,130.97,0.25098]
[1726687828395,0.3666981,130.98,130.96,0.25098]
[1726687828396,0.3666981,130.98,130.96,0.12549]
[1726687828617,8.0013981,130.98,130.95,0.12549]
[1726687828928,8.0015981,130.98,130.95,0.12549]
[1726687829715,0.3666981,130.98,130.92,1.74588625]
[1726687830214,7.6376,130.93,130.92,1.74588625]
[1726687830507,19.0931,130.94,130.84,22.1229]
[1726687830706,7.6395,130.9,130.84,22.1229]
[1726687830892,0.37647,130.96,130.84,60.3373]
[1726687830893,20.0,130.96,130.84,60.3373]
[1726687831097,20.0,130.96,130.87,19.1024]
[1726687831496,40.8147,130.97,130.89,19.0991]
[1726687831497,6.4745,130.97,130.89,19.0991]
[1726687831687,0.3666981,130.98,130.88,20.37647]
[1726687831894,7.6363,130.96,130.92,0.37647]
[1726687832207,7.6359,130.96,130.92,0.37647]
[1726687832396,0.3666981,130.98,130.92,0.37647]
[1726687832597,8.0014981,130.98,130.94,0.25098]
[1726687832919,8.0014981,130.98,130.92,8.01417]
[1726687833097,0.3666981,130.98,130.94,0.37647]
[1726687833296,0.3666981,130.98,130.94,8.01297]
[1726687833490,7.6355,130.97,130.94,0.12549]
[1726687833715,0.3666981,130.98,130.95,7.88728]
[1726687834010,0.3666981,130.98,130.97,0.12549]
[1726687834219,0.3666981,130.98,130.97,7.88628]
[1726687834513,0.3666981,130.98,130.97,0.37647]
[1726687834715,0.3666981,130.98,130.97,8.01177]
[1726687835222,0.3666981,130.98,130.97,28.01177]
[1726687836213,0.3666981,131.09,131.03,8.00827]
[1726687836515,7.6293,131.08,131.03,0.37647]
[1726687836891,7.6293,131.08,131.03,9.53404382]
[1726687837304,7.6293,131.08,131.03,0.37647]
[1726687837504,0.3666981,131.09,131.03,8.00827]
[1726687837714,0.3666981,131.09,130.97,21.74521973]
[1726687837715,7.9979981,131.04,130.98,7.6341]
[1726687838016,7.9979981,131.04,130.97,1.74521973]
[1726687838017,0.3666981,131.04,131.0,7.6333]
[1726687838315,0.3666981,131.04,131.0,7.6334]
[1726687838511,7.9983981,131.04,130.99,19.0845]
[1726687839010,7.9983981,131.04,130.97,1.74521973]
[1726687839011,7.6323,131.03,130.97,1.74521973]
[1726687839213,7.9979981,131.04,130.99,7.6341]
[1726687839518,7.9979981,131.04,130.98,19.0861]
[1726687839519,0.3666981,131.04,131.01,7.6329]
[1726687839690,0.3666981,131.04,130.97,1.74521973]
[1726687840005,0.3666981,131.04,131.0,7.6335]
[1726687840208,0.3666981,131.04,130.97,1.74521973]
[1726687840598,0.3666981,131.04,130.93,6.2621]
[1726687840599,7.6342,130.99,130.93,6.2621]
[1726687840805,19.4448981,131.04,130.93,6.2621]
[1726687841118,7.6324,131.03,130.97,7.6352]
[1726687841295,0.3666981,131.04,131.0,7.6334]
[1726687841490,0.3666981,131.04,130.95,39.38824199]
[1726687841800,0.3666981,131.04,131.0,0.12549]
[1726687842137,0.3666981,131.04,131.0,0.25098]
[1726687842306,7.9980981,131.04,131.0,0.25098]
[1726687842508,7.9980981,131.04,131.0,0.12549]
[1726687842509,0.3666981,131.04,131.0,0.12549]
[1726687842709,7.6341,130.99,130.94,7.6365]
[1726687842922,7.6357,130.97,130.93,1.74575291]
[1726687843214,20.0,131.01,130.94,7.6368]
[1726687843215,7.6345,130.99,130.94,7.6368]
[1726687843393,7.633,131.01,130.97,7.6353]
[1726687843597,15.8111981,131.04,130.96,7.6357]
[1726687843598,7.6336,131.0,130.96,7.6357]
[1726687843821,15.8111981,131.04,130.97,19.0875]
[1726687843990,20.3666981,131.04,130.97,26.7226]
[1726687844195,7.632,131.03,130.99,7.6341]
[1726687844416,0.3666981,131.04,131.01,0.25098]
[1726687844608,7.9980981,131.04,131.01,0.25098]
[1726687844809,19.4452981,131.04,130.97,0.12549]
[1726687845011,7.6325,131.02,130.98,0.12549]
[1726687845622,19.4452981,131.04,130.98,0.12549]
[1726687845623,7.633,131.01,130.98,0.12549]
[1726687845824,7.6336,131.0,130.98,0.12549]
[1726687846523,19.4452981,131.04,130.98,0.12549]
[1726687847291,19.4452981,131.04,130.97,0.12549]
[1726687848097,0.3666981,131.04,130.96,0.12549]
[1726687848294,0.3666981,131.04,130.93,28.47615291]
[1726687848503,20.0,131.03,130.93,28.47615291]
[1726687848726,20.0,131.03,130.94,7.637]
[1726687849610,20.3666981,131.04,130.95,0.37647]
[1726687850005,43.3566981,131.04,130.93,1.74575291]
[1726687850222,20.3666981,131.04,130.93,1.74575291]
[1726687850411,7.6336,131.0,130.96,7.6355]
[1726687850710,0.3666981,131.04,131.0,7.6333]
[1726687850927,0.3666981,131.04,131.01,0.6141378]
[1726687851128,0.3666981,131.04,131.0,7.6334]
[1726687851423,0.3666981,131.04,131.0,0.37647]
[1726687851647,0.3666981,131.04,131.01,19.0821]
[1726687851924,0.3666981,131.04,131.02,0.37647]
[1726687852436,0.3666981,131.04,131.03,9.53068543]
[1726687852617,0.3666981,131.04,131.03,8.00827]
[1726687852797,0.3666981,131.04,131.03,0.12549]
[1726687853002,0.3666981,131.04,130.98,19.0856]
[1726687853314,0.3666981,131.04,130.96,1.74535299]
[1726687853614,20.0,131.02,130.96,1.74535299]
[1726687853823,0.3666981,131.04,130.96,1.74535299]
[1726687854205,7.6328,131.02,130.97,7.6348]
[1726687854509,7.6332,131.01,130.97,7.6348]
[1726687854716,7.6332,131.01,130.96,20.83435299]
[1726687854717,7.6325,131.02,130.98,7.6345]
[1726687855027,7.6325,131.02,130.97,7.6352]
[1726687855228,7.6325,131.02,130.98,7.6346]
[1726687855402,7.632,131.03,130.99,0.37647]
[1726687855734,7.6319,131.03,130.99,8.01017]
[1726687855958,7.9982981,131.04,130.99,8.01037]
[1726687856232,7.9979981,131.04,131.01,0.37647]
[1726687856424,7.9978981,131.04,131.01,0.37647]
[1726687856734,0.3666981,131.04,131.01,0.12549]
[1726687856908,7.6324,131.02,131.01,0.12549]
[1726687857112,7.6324,131.02,130.98,0.25098]
[1726687857430,7.6324,131.02,130.99,0.12549]
[1726687858138,0.3666981,131.04,130.99,0.12549]
[1726687858430,7.9983981,131.04,131.01,0.12549]
[1726687858636,7.6271,131.12,131.03,0.37647]
[1726687858811,7.626,131.13,131.08,8.00537]
[1726687859013,0.3666981,131.15,131.08,8.00537]
[1726687859654,7.6265,131.13,131.08,8.00537]
[1726687859826,0.3666981,131.15,131.08,0.37647]
[1726687859827,7.6272,131.11,131.08,0.37647]
[1726687860434,54.0328,131.18,131.08,0.37647]
[1726687860435,20.0,131.13,131.08,0.12549]
[1726687860740,20.0,131.13,131.06,0.25098]
[1726687860741,0.2955249,131.09,131.06,0.25098]
[1726687860942,7.6295,131.07,131.04,1.74428745]
[1726687861241,0.2955249,131.09,131.05,0.12549]
[1726687861611,17.9251249,131.13,131.04,1.74428745]
[1726687861945,0.3766354,131.14,130.98,21.1983]
[1726687862114,0.25098,131.13,130.99,1.74495326]
[1726687862313,0.25098,131.13,131.02,7.632]
[1726687862737,0.25098,131.13,131.01,19.0817]
[1726687862738,0.3766354,131.14,131.03,19.0789]
[1726687862935,19.0661,131.13,131.05,19.0761]
[1726687863114,19.0661,131.13,131.07,0.25098]
[1726687863115,7.6273,131.11,131.07,0.25098]
[1726687863310,0.3766354,131.14,131.08,0.12549]
[1726687863517,7.6276,131.11,131.08,0.12549]
[1726687863928,7.6267,131.12,131.08,0.12549]
[1726687864133,0.3766354,131.14,131.1,0.12549]
[1726687864337,0.3766354,131.14,131.09,0.12549]
[1726687864653,7.6284,131.09,131.06,0.25098]
[1726687864845,0.3766354,131.14,131.07,0.37647]
[1726687865048,7.6268,131.12,131.08,7.6285]
[1726687865350,7.6268,131.12,131.09,0.37647]
[1726687865517,7.6261,131.13,131.09,8.00467]
[1726687865714,8.0024354,131.14,131.09,8.00467]
[1726687865938,7.626,131.13,131.09,8.00467]
[1726687866141,8.0022354,131.14,131.09,8.00467]
[1726687866445,7.627,131.12,131.09,0.37647]
[1726687866649,0.3766354,131.14,131.09,0.37647]
[1726687867207,0.3766354,131.14,131.13,8.00247]
[1726687868146,0.3766354,131.14,131.13,0.37647]
[1726687868351,7.626,131.13,131.11,0.12549]
[1726687868535,0.3766354,131.14,131.08,0.12549]
[1726687868536,7.6269,131.12,131.08,0.12549]
[1726687868727,0.3766354,131.14,131.06,25.2902]
[1726687868728,19.0653,131.13,131.06,25.2902]
[1726687869048,19.0686,131.11,131.03,34.1314]
[1726687869224,43.3666354,131.14,131.02,7.6323]
[1726687869225,7.6303,131.06,131.02,7.6323]
[1726687869429,19.0714,131.09,131.01,7.6328]
[1726687869749,19.0714,131.09,131.02,7.632]
[1726687869750,7.6298,131.07,131.02,7.632]
[1726687870044,7.6302,131.06,131.02,26.7128]
[1726687870238,7.6307,131.05,130.99,19.0844]
[1726687870447,19.0726,131.08,130.99,19.0844]
[1726687870631,19.0726,131.08,130.99,26.718]
[1726687870632,7.6314,131.04,130.99,26.718]
[1726687870828,7.6314,131.04,130.98,21.0779]
[1726687870829,20.0,131.07,130.98,13.6595]
[1726687871250,20.0,131.05,130.96,19.0889]
[1726687871466,7.6324,131.02,130.97,7.6352]
[1726687871668,7.6356,130.97,130.94,0.3766354]
[1726687871843,0.37647,131.06,130.94,0.3766354]
[1726687871844,7.6359,130.96,130.94,0.3766354]
[1726687872040,7.6365,130.95,130.94,0.3766354]
[1726687872460,27.6365,130.95,130.94,0.3766354]
[1726687872860,7.6365,130.95,130.94,0.3766354]
[1726687873065,27.6365,130.95,130.94,0.3766354]
[1726687873642,7.64,130.89,130.88,0.3766354]
[1726687873861,7.6394,130.9,130.88,0.3766354]
[1726687874051,63.90369457,130.92,130.88,0.3766354]
[1726687874052,7.64,130.89,130.88,0.3766354]
[1726687875550,63.90369457,130.92,130.88,0.3766354]
[1726687875747,20.0,130.93,130.88,0.3766354]
[1726687875971,7.6385,130.92,130.88,0.3766354]
[1726687876167,20.0,130.93,130.88,0.3766354]
[1726687876168,7.6377,130.93,130.88,0.3766354]
[1726687876781,7.6377,130.93,130.89,0.25098]
[1726687877348,63.90369457,130.96,130.88,0.3766354]
[1726687877561,63.90369457,130.94,130.88,0.3766354]
[1726687877773,7.6395,130.9,130.88,0.3766354]
[1726687878163,7.64,130.89,130.88,0.3766354]
[1726687878978,27.64,130.89,130.88,0.3766354]
[1726687879580,7.64,130.89,130.88,0.3766354]
[1726687880178,7.6395,130.9,130.88,0.3766354]
[1726687880484,27.64,130.89,130.88,0.3766354]
[1726687883662,27.64,130.89,130.82,0.3766354]
[1726687883663,19.1016,130.88,130.82,0.3766354]
[1726687883861,7.6435,130.83,130.82,0.3766354]
[1726687884195,71.54719457,130.83,130.82,0.3766354]
[1726687884678,7.6428,130.85,130.82,0.3766354]
[1726687884858,63.90369457,130.85,130.82,0.3766354]
[1726687885061,71.54719457,130.83,130.82,0.3766354]
[1726687885553,91.54719457,130.83,130.82,0.3766354]
[1726687885758,91.54719457,130.83,130.77,0.3766354]
[1726687885759,7.6464,130.78,130.77,0.3766354]
[1726687885995,7.6464,130.78,130.67,13.9697]
[1726687885996,7.6499,130.72,130.68,7.6522]
[1726687886168,7.6499,130.72,130.68,0.0886412]
[1726687886370,7.6506,130.71,130.68,0.0886412]
[1726687886564,63.90369457,130.73,130.68,0.0886412]
[1726687886766,7.6511,130.7,130.68,0.0886412]
[1726687886984,63.90369457,130.73,130.68,0.0886412]
[1726687887366,71.55309457,130.73,130.68,0.0886412]
[1726687887573,7.65,130.72,130.68,0.0886412]
[1726687887793,7.6494,130.73,130.68,7.7408412]
[1726687888302,63.90369457,130.77,130.68,0.0886412]
[1726687888468,7.6482,130.75,130.7,26.7785]
[1726687888662,7.6472,130.77,130.7,19.1275]
[1726687888869,7.6479,130.76,130.7,19.1275]
[1726687889083,7.6484,130.75,130.7,19.1275]
[1726687889486,7.6484,130.75,130.71,0.12549]
[1726687890293,63.90369457,130.79,130.73,0.25098]
[1726687890770,7.6474,130.77,130.73,7.90028]
[1726687890979,7.6478,130.76,130.72,19.1238]
[1726687891497,63.90369457,130.79,130.73,0.25098]
[1726687891666,71.54999457,130.79,130.74,7.6487]
[1726687891863,7.6465,130.78,130.73,7.90018]
[1726687892069,63.90369457,130.79,130.73,7.6492]
[1726687892370,7.6453,130.8,130.76,7.6475]
[1726687892587,7.6446,130.82,130.75,0.37647]
[1726687892780,7.6446,130.82,130.76,19.1178]
[1726687892978,63.90369457,130.83,130.72,6.0229]
[1726687892979,63.90369457,130.85,130.78,0.12549]
[1726687893286,63.90369457,130.85,130.8,19.1121]
[1726687893483,7.6429,130.84,130.8,26.7572]
[1726687893695,71.54519457,130.87,130.81,7.6445]
[1726687893878,25.314,130.89,130.81,7.6445]
[1726687894198,25.314,130.89,130.8,19.1121]
[1726687894199,7.6436,130.83,130.78,8.02267]
[1726687894394,7.6441,130.82,130.78,8.02267]
[1726687894692,7.6441,130.82,130.78,0.12549]
[1726687894893,7.6435,130.83,130.78,7.77179]
[1726687895071,63.90369457,130.85,130.77,26.88909]
[1726687895276,7.6451,130.81,130.76,7.77299]
[1726687895469,7.6453,130.8,130.76,7.77299]
[1726687895670,7.6428,130.85,130.8,7.6451]
[1726687895988,7.6428,130.85,130.77,0.25098]
[1726687895989,63.90369457,130.85,130.77,0.25098]
[1726687896291,7.6451,130.81,130.77,7.647]
[1726687896474,7.6453,130.8,130.76,8.02387]
[1726687896675,7.6448,130.81,130.76,8.02387]
[1726687896899,7.6439,130.83,130.78,7.6463]
[1726687897085,20.0,130.84,130.78,7.6463]
[1726687897272,63.90369457,130.85,130.79,19.23939]
[1726687897273,7.6424,130.85,130.79,19.23939]
[1726687897476,71.90213413,130.87,130.8,7.89618]
[1726687897984,7.6428,130.85,130.8,0.25098]
[1726687898197,83.00719457,130.87,130.77,0.37647]
[1726687898389,7.6411,130.88,130.8,19.1124]
[1726687898706,7.6411,130.88,130.83,7.6434]
[1726687898707,7.6406,130.88,130.83,7.6434]
[1726687899195,7.6405,130.89,130.84,7.6425]
[1726687899496,7.6408,130.88,130.83,7.89428]
[1726687899700,7.6409,130.88,130.84,19.1068]
[1726687899871,7.6409,130.88,130.81,6.2519]
[1726687899872,7.6421,130.86,130.82,0.12549]
[1726687900073,7.6421,130.86,130.82,0.25098]
[1726687900294,7.6401,130.89,130.84,7.89338]
[1726687900488,7.6401,130.89,130.85,7.6422]
[1726687900686,71.8994549,130.92,130.86,7.6417]
[1726687900894,7.6389,130.91,130.86,7.6417]
[1726687901097,0.63466033,130.92,130.86,0.12549]
[1726687901299,63.90369457,130.92,130.83,0.25098]
[1726687901596,20.0,130.89,130.82,19.1092]
[1726687902482,63.90369457,130.9,130.84,7.6427]
[1726687902682,0.3941954,130.93,130.86,0.25098]
[1726687902886,0.3941954,130.93,130.91,7.6382]
[1726687903079,0.3941954,130.93,130.9,0.12549]
[1726687903385,0.3941954,130.93,130.91,7.76419]
[1726687903701,0.3941954,130.93,130.92,7.76369]
[1726687903895,0.3941954,130.93,130.92,8.01467]
[1726687904098,0.3941954,130.93,130.92,0.12549]
[1726687904275,0.3941954,130.93,130.91,0.12549]
[1726687904481,0.3941954,130.93,130.9,25.7177]
[1726687905013,0.3941954,130.93,130.88,382.1]
[1726687905301,0.3941954,130.93,130.9,0.12549]
[1726687905475,0.3941954,130.93,130.92,7.88918]
[1726687905804,0.3941954,130.93,130.92,0.12549]
[1726687906194,0.3941954,130.93,130.92,7.88918]
[1726687907081,0.3941954,130.93,130.92,8.01467]
[1726687907499,0.3941954,130.93,130.91,382.1]
[1726687907990,8.0319954,130.93,130.91,382.1]
[1726687908187,0.3941954,130.93,130.91,382.1]
[1726687908525,63.90369457,130.92,130.86,382.1]
[1726687908800,20.3941954,130.93,130.84,1.74695374]
[1726687909012,20.3941954,130.93,130.84,383.84695374]
[1726687910100,63.90369457,130.92,130.84,382.1]
[1726687910300,7.6423,130.85,130.84,382.1]
[1726687910506,63.90369457,130.86,130.78,22.3126]
[1726687910878,63.90369457,130.9,130.78,22.3126]
[1726687911204,7.6407,130.88,130.78,24.06035522]
[1726687911411,20.0,130.91,130.78,87.96404979]
[1726687911702,7.64,130.89,130.8,0.37647]
[1726687911880,7.64,130.89,130.8,2.12395798]
[1726687912305,7.6406,130.88,130.84,0.37647]
[1726687912521,7.6412,130.87,130.84,0.12549]
[1726687912684,7.6417,130.86,130.81,7.6446]
[1726687912884,7.6433,130.84,130.8,401.2125]
[1726687913086,7.6433,130.84,130.8,382.1]
[1726687913605,7.6435,130.83,130.8,382.1]
[1726687913813,19.101,130.89,130.78,22.3126]
[1726687913814,7.6442,130.82,130.78,22.3126]
[1726687913982,7.6436,130.83,130.78,412.0589]
[1726687914497,7.6423,130.85,130.79,19.1137]
[1726687914684,7.6423,130.85,130.78,404.4126]
[1726687914685,20.0,130.89,130.8,7.6448]
[1726687914886,7.6435,130.83,130.78,33.0346]
[1726687915086,7.6435,130.83,130.79,0.25098]
[1726687915592,63.90369457,130.85,130.78,382.1]
[1726687915890,63.90369457,130.81,130.75,0.0886412]
[1726687916294,20.0,130.8,130.75,0.0886412]
[1726687916500,7.6465,130.78,130.75,0.0886412]
[1726687916699,7.6464,130.79,130.75,0.0886412]
[1726687917094,20.0,130.8,130.75,0.0886412]
[1726687917290,7.6472,130.77,130.75,0.0886412]
[1726687917884,7.6475,130.76,130.75,0.0886412]
[1726687918285,39.1139,130.8,130.75,0.0886412]
[1726687918286,20.0,130.8,130.75,0.0886412]
[1726687918509,7.6459,130.79,130.75,0.0886412]
[1726687918720,7.6453,130.8,130.75,7.7367412]
[1726687919212,7.6464,130.78,130.75,0.0886412]
[1726687919419,7.6459,130.79,130.75,0.2141312]
[1726687919731,7.6459,130.79,130.75,0.0886412]
[1726687919732,7.6475,130.76,130.75,0.0886412]
[1726687919894,7.6465,130.78,130.75,0.0886412]
[1726687920082,7.6472,130.77,130.75,0.0886412]
[1726687920287,7.6471,130.77,130.75,0.0886412]
[1726687920488,7.6475,130.76,130.75,0.0886412]
[1726687921210,83.90369457,130.79,130.75,0.0886412]
[1726687921517,7.6471,130.77,130.75,0.0886412]
[1726687921716,7.6453,130.8,130.76,0.12549]
[1726687922019,7.6453,130.8,130.75,0.0886412]
[1726687922020,7.6474,130.77,130.75,0.0886412]
[1726687922186,20.0,130.8,130.75,0.0886412]
[1726687922187,7.6468,130.78,130.75,0.0886412]
[1726687922392,7.647,130.77,130.75,0.0886412]
[1726687922587,63.90369457,130.79,130.75,0.0886412]
[1726687922787,7.6475,130.76,130.75,0.0886412]
[1726687923420,27.6475,130.76,130.75,0.0886412]
[1726687923796,7.6505,130.71,130.68,19.1302]
[1726687924006,7.6517,130.69,130.67,0.4828366]
[1726687924310,63.90369457,130.7,130.67,0.4828366]
[1726687924539,16.4609,130.75,130.67,0.4828366]
[1726687924540,91.55589457,130.68,130.67,0.4828366]
[1726687924702,71.55589457,130.68,130.67,0.4828366]
[1726687925027,7.6528,130.67,130.66,0.09518585]
[1726687925240,27.6563,130.61,130.6,0.4828366]
[1726687925398,91.55999457,130.61,130.6,0.4828366]
[1726687925603,91.55999457,130.61,130.51,7.98279029]
[1726687925604,20.0,130.6,130.51,7.98279029]
[1726687925801,63.90369457,130.58,130.51,15.64499029]
[1726687926100,7.6599,130.55,130.49,26.91628585]
[1726687926304,7.6599,130.55,130.49,19.25318585]
[1726687926909,63.90369457,130.58,130.49,19.25318585]
[1726687927434,63.90369457,130.58,130.52,19.154]
[1726687927625,7.6589,130.57,130.52,19.154]
[1726687927925,83.90369457,130.6,130.53,8.1438366]
[1726687928307,83.90369457,130.6,130.53,0.4828366]
[1726687928308,63.90369457,130.56,130.53,0.4828366]
[1726687928507,7.6604,130.54,130.53,0.4828366]
[1726687928704,7.6599,130.55,130.53,0.4828366]
[1726687929015,19.1455,130.58,130.53,0.4828366]
[1726687929016,20.0,130.57,130.53,0.4828366]
[1726687929206,71.56199457,130.58,130.53,0.4828366]
[1726687929207,63.90369457,130.58,130.53,0.4828366]
[1726687929537,7.6599,130.55,130.53,0.4828366]
[1726687929753,63.90369457,130.58,130.53,0.4828366]
[1726687929917,71.56229457,130.58,130.53,0.4828366]
[1726687930108,7.6589,130.57,130.53,0.4828366]
[1726687930307,7.6582,130.58,130.53,0.4828366]
[1726687930532,7.6582,130.58,130.53,8.1437366]
[1726687930840,7.6581,130.58,130.53,0.4828366]
[1726687931057,63.90369457,130.62,130.53,0.4828366]
[1726687931246,7.6599,130.55,130.53,0.4828366]
[1726687931550,7.6604,130.54,130.53,0.4828366]
[1726687931714,71.56409457,130.54,130.53,0.4828366]
[1726687932356,71.56409457,130.54,130.49,0.09518585]